Cogmind - Beta 11.1 @@@ ROGUE MODE // 2022.07.19 @ 20:06:58 Player: Rainynight Result: Destroyed by G-47 Trooper with Particle Gun Performance ------------- Evolutions (1) 500 Regions Visited (5) 1000 Robots Destroyed (24) 120 Value Destroyed (485) 485 Prototype IDs (24) 480 Alien Tech Used (0) 0 Bonus (300) 300 TOTAL SCORE: 2885 Bonus ------- Aligned with FarCom 300 Cogmind --------- Core Integrity 0/400 Matter 290/300 Energy 100/100 System Corruption 0% Temperature Cool (9) Movement Core (100) Ox1 Location -8/Mines Parts ------- > --- POWER (1) -------- (None) > --- PROPULSION (2) --- (None) > --- UTILITY (4) ------ Small Storage Unit > --- WEAPON (2) ------- Light Assault Rifle > --- INVENTORY (8) ---- Light Ion Engine Small Storage Unit Medium Matter Pod (100) High-capacity Matter Pod (200) Light Armor Plating AWS/Autocannon Peak State ------------ > --- POWER ------------ Light Ion Engine > --- PROPULSION ------- Compact Wheel Compact Wheel > --- UTILITY ---------- Heat Sink Improved Heat Sink Small Storage Unit Seismic Detector > --- WEAPON ----------- Light Assault Rifle Light Assault Rifle > --- INVENTORY -------- Light Ion Engine Heat Sink Small Storage Unit Light Armor Plating AWS/Autocannon [Rating: 14] Favorites ----------- Power Light Ion Engine Engine Light Ion Engine Propulsion Light Treads Treads Light Treads Wheel Compact Wheel Utility Small Storage Unit Device Heat Sink Storage Small Storage Unit Weapon Small Laser Energy Gun Small Laser Ballistic Gun Light Assault Rifle Special Weapon Plasma Cutter Build | -11 -10 -9 -9 -9 -8 ------- Run | Scr Mat Mat Min Exi Min Slots Evolved 2 | . . 2 . . . Power . | . . . . . . Propulsion . | . . . . . . Utility 2 | . . 2 . . . Weapon . | . . . . . . Parts Attached 28 | 9 5 5 8 1 . Power 4 | 1 . 2 1 . . Engine 4 | 1 . 2 1 . . Core . | . . . . . . Reactor . | . . . . . . Propulsion 4 | 2 . . 2 . . Treads 2 | 2 . . . . . Leg . | . . . . . . Wheel 2 | . . . 2 . . Hover . | . . . . . . Flight . | . . . . . . Utility 7 | 2 . 2 2 1 . Device 5 | 1 . 2 1 1 . Storage 2 | 1 . . 1 . . Processor . | . . . . . . Hackware . | . . . . . . Protection . | . . . . . . Artifact . | . . . . . . Weapon 13 | 4 5 1 3 . . Energy Gun 5 | 2 2 1 . . . Energy Cannon . | . . . . . . Ballistic Gun 3 | . . . 3 . . Ballistic Cannon . | . . . . . . Launcher . | . . . . . . Special Weapon 5 | 2 3 . . . . Impact Weapon . | . . . . . . Slashing Weapon . | . . . . . . Piercing Weapon . | . . . . . . Special Melee Weapon . | . . . . . . Unidentified Prototypes 1 | . . 1 . . . Parts Lost 13 | . 1 3 2 . 7 Power 3 | . . 2 . . 1 Propulsion 4 | . . . 2 . 2 Utility 4 | . . 1 . . 3 Weapon 2 | . 1 . . . 1 Highest Loss Streak 7 | . 1 3 5 . 7 To Critical Strikes . | . . . . . . Average Slot Usage (%) 92 | . 100 90 83 100 65 Engine 10 | . 14 10 6 11 6 Treads 14 | . 28 22 2 . . Wheel 7 | . . . 11 22 13 Device 24 | . 14 24 29 33 19 Storage 11 | . 14 11 11 11 11 Energy Gun 8 | . 2 22 11 . . Ballistic Gun 7 | . . . 10 22 14 Special Weapon 6 | . 25 . . . . Naked Turns . | . . . . . . Heaviest Build 19 | 12 11 19 15 13 13 Greatest Support 40 | 40 40 40 40 32 32 Greatest Overweight (x) 4 | 1 . . 4 . . Average Overweight (x) . | . . . . . . Largest Inventory Capacity 8 | 8 8 8 8 8 8 Average Capacity 7 | 7 8 8 8 8 8 Most Carried 8 | 5 8 8 8 8 8 Average Carried 6 | 2 7 7 7 7 8 Final Capacity 8 | 8 8 8 8 8 8 Final Carried 8 | 5 7 7 8 8 8 Class Distribution -------------------- 54% | Mutant 45% | Scavenger-Mutant Dominant Class ---------------- Mutant | -10/Materials Scavenger-Mutant | -9/Materials Scavenger-Mutant | -9/Mines Scavenger-Mutant | -9/Exiles Scavenger-Mutant | -8/Mines Resources | -11 -10 -9 -9 -9 -8 ----------- Run | Scr Mat Mat Min Exi Min Matter Collected 493 | 274 61 40 70 48 . Remotely . | . . . . . . Salvage Created 968 | 139 167 342 148 . 172 Parts 52 | 15 11 9 11 . 6 Haulers Intercepted 1 | . . 1 . . . Recyclers Shooed 5 | 1 1 1 . . 2 Parts Field Recycled . | . . . . . . Retrieved Matter . | . . . . . . Parts Self-Destructed . | . . . . . . Prevented . | . . . . . . Kills | -11 -10 -9 -9 -9 -8 ------- Run | Scr Mat Mat Min Exi Min Combat Hostiles Destroyed 13 | . 2 4 4 . 3 Guns 11 | . . 4 4 . 3 Cannons 2 | . 2 . . . . Classes Destroyed 7 | 3 1 2 1 . . Worker 1 | 1 . . . . . Tunneler 5 | 4 . . 1 . . Hauler 1 | . . 1 . . . Recycler 4 | 1 1 1 1 . . Swarmer 4 | . . . 4 . . Grunt 7 | . 2 2 . . 3 Sentry 2 | . . 2 . . . Best Kill Streak 6 | 2 2 2 6 . 2 Combat Bots Only 4 | . 2 1 4 . 2 Max Kills in Single Turn 1 | 1 1 1 1 . 1 Gunslinging . | . . . . . . Exploded . | . . . . . . Melee . | . . . . . . Uniques/NPCs Destroyed . | . . . . . . Combat | -11 -10 -9 -9 -9 -8 -------- Run | Scr Mat Mat Min Exi Min Damage Taken 1548 | . 165 498 210 . 675 Core 425 | . 16 58 59 . 292 Absorbed by Shields . | . . . . . . Core Remaining (%) 96 | 100 93 . . . . Volleys Fired 127 | 25 22 31 14 . 35 Largest 2 | 2 2 2 2 . 2 Hottest 200 | 200 80 96 96 . 40 Shots Fired 223 | 50 44 62 28 . 39 Gun 173 | 42 2 62 28 . 39 Cannon . | . . . . . . Launcher . | . . . . . . Special 50 | 8 42 . . . . Kinetic 43 | . . . 4 . 39 Thermal 159 | 29 44 62 24 . . Explosive . | . . . . . . Electromagnetic 21 | 21 . . . . . Robot Hit Streak 12 | 8 4 9 12 . 9 Robot Miss Streak 3 | 2 3 3 2 . 2 Penetration Max . | . . . . . . Secondary Targets . | . . . . . . Shots Hit Robots 138 | 33 9 49 20 . 27 Core Hits 45 | 7 8 12 7 . 11 Critical Kills 1 | . . . . . 1 Critical Parts Destroyed 1 | . . . . . 1 Critical Strikes 4 | . . 1 1 . 2 Burn 2 | . . 1 1 . . Destroy 2 | . . . . . 2 Melee Attacks . | . . . . . . Impact . | . . . . . . Slashing . | . . . . . . Piercing . | . . . . . . Sneak Attacks . | . . . . . . Combat Hostiles . | . . . . . . Follow-up Attacks . | . . . . . . Damage Inflicted 1633 | 405 104 600 285 . 239 Guns 1481 | 333 24 600 285 . 239 Cannons . | . . . . . . Explosions . | . . . . . . Melee . | . . . . . . Ramming . | . . . . . . Kinetic 278 | . . . 39 . 239 Thermal 1166 | 216 104 600 246 . . Explosive . | . . . . . . Electromagnetic 189 | 189 . . . . . Impact . | . . . . . . Slashing . | . . . . . . Piercing . | . . . . . . Highest Corruption . | . . . . . . Average Corruption . | . . . . . . Corruption Purged . | . . . . . . Corruption Blocked . | . . . . . . Overload Shots . | . . . . . . Overflow Damage 2 | 2 . . . . . Projectiles 2 | 2 . . . . . Explosions . | . . . . . . Melee . | . . . . . . Knockbacks . | . . . . . . Impact . | . . . . . . Kinetic . | . . . . . . Secondary . | . . . . . . Self-Inflicted Damage . | . . . . . . Shots . | . . . . . . Rammed . | . . . . . . Targets Rammed . | . . . . . . Kicked . | . . . . . . Crushed . | . . . . . . Highest Temperature 162 | 162 18 36 . . 1 Average Temperature 46 | 51 12 16 . . 1 Received Heat Transfer 729 | . 93 249 . . 387 Siege Activations . | . . . . . . Robots Corrupted . | . . . . . . Combat Hostiles . | . . . . . . Parts Fried 1 | 1 . . . . . Impact Corruptions . | . . . . . . Robots Melted . | . . . . . . Combat Hostiles . | . . . . . . Parts Melted 9 | . 1 5 3 . . Heat Transferred 2835 | 475 309 1419 632 . . Parts Sabotaged . | . . . . . . Parts Stolen . | . . . . . . Parts Stripped . | . . . . . . Power Chain Reactions . | . . . . . . Missiles Intercepted . | . . . . . . Alert | -11 -10 -9 -9 -9 -8 ------- Run | Scr Mat Mat Min Exi Min Peak Influence 137 | 30 64 137 129 . 35 Initial 49 | . 19 26 49 . . Average 48 | 14 24 67 115 . 12 Maximum Alert Level . | . . . . . . Low Security (%) 100 | 100 100 100 100 . 100 Level 1 . | . . . . . . Level 2 . | . . . . . . Level 3 . | . . . . . . Level 4 . | . . . . . . Level 5 . | . . . . . . High Security . | . . . . . . Max Security . | . . . . . . Squads Dispatched 1 | . . 1 . . . Investigation . | . . . . . . Extermination . | . . . . . . Reinforcement 1 | . . 1 . . . Assault . | . . . . . . Garrison . | . . . . . . Intercept . | . . . . . . Searches Triggered . | . . . . . . Construction Impeded . | . . . . . . Haulers Reinforced . | . . . . . . Active Scanning Responses . | . . . . . . Cargo Convoy Interrupts . | . . . . . . Stealth | -11 -10 -9 -9 -9 -8 --------- Run | Scr Mat Mat Min Exi Min Distress Signals 2 | . . 2 . . . Communications Jammed . | . . . . . . Distress Signals . | . . . . . . Times Spotted 22 | . 2 10 4 . 6 Peak Tracking Total 5 | . 2 5 4 . 3 Tactical Retreats . | . . . . . . Traps | -11 -10 -9 -9 -9 -8 ------- Run | Scr Mat Mat Min Exi Min Traps Triggered . | . . . . . . Indirectly . | . . . . . . Trap Hack Attempts . | . . . . . . Triggered . | . . . . . . Disarmed . | . . . . . . Reprogrammed . | . . . . . . Reused . | . . . . . . Traps Extracted . | . . . . . . Installed . | . . . . . . Triggered . | . . . . . . Machines | -11 -10 -9 -9 -9 -8 ---------- Run | Scr Mat Mat Min Exi Min Machines Disabled . | . . . . . . Max in Single Turn . | . . . . . . Machines Sabotaged . | . . . . . . Garrisons Compromised . | . . . . . . Overloaded Fab Kills . | . . . . . . Hacking | -11 -10 -9 -9 -9 -8 --------- Run | Scr Mat Mat Min Exi Min Machines Accessed 3 | . . 2 . 1 . Terminals 1 | . . 1 . . . Fabricators . | . . . . . . Repair Stations . | . . . . . . Recycling Units 1 | . . 1 . . . Scanalyzers . | . . . . . . Garrison Access . | . . . . . . Total Hacks 3 | . . 2 . 1 . Successful 3 | . . 2 . 1 . Failed . | . . . . . . Catastrophic . | . . . . . . Database Lockouts . | . . . . . . Manual 2 | . . 1 . 1 . Terminals 1 | . . 1 . . . Fabricators . | . . . . . . Repair Stations . | . . . . . . Recycling Units 1 | . . 1 . . . Scanalyzers . | . . . . . . Garrison Access . | . . . . . . Terminal Hacks 2 | . . 1 . 1 . Locate Traps 1 | . . 1 . . . EX-Prototype ID Bank 1 | . . . . 1 . Fabricator Hacks . | . . . . . . Repair Station Hacks . | . . . . . . Recycling Unit Hacks 1 | . . 1 . . . Report Inventory 1 | . . 1 . . . Scanalyzer . | . . . . . . Garrison Access Hacks . | . . . . . . Unauthorized Hacks . | . . . . . . Terminals . | . . . . . . Fabricators . | . . . . . . Repair Stations . | . . . . . . Recycling Units . | . . . . . . Scanalyzers . | . . . . . . Garrison Access . | . . . . . . Data Cores Recovered . | . . . . . . Used . | . . . . . . Hacking Detections 1 | . . 1 . . . Full Trace Events . | . . . . . . Feedback Events . | . . . . . . Feedback Blocked . | . . . . . . Robot Schematics Acquired . | . . . . . . Robots Built . | . . . . . . Authchips . | . . . . . . Time . | . . . . . . Total Robot Build Rating . | . . . . . . Part Schematics Acquired . | . . . . . . Parts Built . | . . . . . . Authchips . | . . . . . . Time . | . . . . . . Total Part Build Rating . | . . . . . . Parts Repaired . | . . . . . . Time . | . . . . . . Parts Recycled . | . . . . . . Recycled Matter . | . . . . . . Retrieved Matter . | . . . . . . Retrieved Components . | . . . . . . Parts Scanalyzed . | . . . . . . Part Schematics Acquired . | . . . . . . Parts Damaged . | . . . . . . Bothacking | -11 -10 -9 -9 -9 -8 ------------ Run | Scr Mat Mat Min Exi Min Used RIF Installer . | . . . . . . Robots Hacked . | . . . . . . Non-combat . | . . . . . . Combat . | . . . . . . Robot Hacks Applied . | . . . . . . Relay Couplers Released . | . . . . . . Fabnet Peak Effective % . | . . . . . . Robots Rewired . | . . . . . . Allies Hacked . | . . . . . . Hacks Repelled . | . . . . . . Allies | -11 -10 -9 -9 -9 -8 -------- Run | Scr Mat Mat Min Exi Min Total Allies . | . . . . . . Largest Group . | . . . . . . Highest-Rated Group . | . . . . . . Highest-Rated Ally . | . . . . . . Total Orders . | . . . . . . Ally Attacks . | . . . . . . Total Damage . | . . . . . . Kills . | . . . . . . Allies Corrupted . | . . . . . . Allies Melted . | . . . . . . Intel | -11 -10 -9 -9 -9 -8 ------- Run | Scr Mat Mat Min Exi Min Robot Analysis Total . | . . . . . . Derelict Logs Recovered 1 | . . . 1 . . Drone Launches . | . . . . . . Drone Recoveries . | . . . . . . Exploration | -11 -10 -9 -9 -9 -8 ------------- Run | Scr Mat Mat Min Exi Min Turns Passed 1553 | 282 338 368 203 271 91 Spaces Moved 798 | 114 133 156 120 263 12 Core 22 | 10 . . 12 . . Treads 402 | 104 133 156 9 . . Legs . | . . . . . . Wheels 374 | . . . 99 263 12 Hover . | . . . . . . Flight . | . . . . . . Fastest Speed 50 | 50 160 160 100 100 100 Average Speed 131 | 153 160 160 115 100 100 Slowest Speed 250 | 160 160 160 250 100 100 Overloaded Moves . | . . . . . . Propulsion Burnouts . | . . . . . . Robots Hopped . | . . . . . . Cave-ins Triggered . | . . . . . . Exploration Rate (%) 26 | 6 20 23 40 60 8 Regions Visited 5 Branch Regions 3 Pre-discovered Areas . | . . . . . . Known Exits Taken . | . . . . . . Unknown Exits Taken 5 | 1 1 1 1 1 . Scrap Searched . | . . . . . . Spaces Dug 1 | 1 . . . . . Terrain Destroyed 3 | 3 . . . . . Melee . | . . . . . . Projectile 3 | 3 . . . . . AOE . | . . . . . . Terrain Rammed . | . . . . . . Walls Destroyed . | . . . . . . Machines Disabled . | . . . . . . Actions | -11 -10 -9 -9 -9 -8 --------- Run | Scr Mat Mat Min Exi Min Total 1028 | 152 174 214 155 273 60 Wait 44 | . 8 12 11 . 13 Move 793 | 113 132 155 119 262 12 Hop . | . . . . . . Pick Up 15 | 3 3 5 . 4 . Fast Attach 19 | 9 1 3 6 . . Attach 3 | . 2 1 . . . Detach 3 | 2 1 . . . . Swap 6 | . 2 1 2 1 . Drop 18 | . 3 6 3 6 . Fire 127 | 25 22 31 14 . 35 Melee . | . . . . . . Ram . | . . . . . . Kick . | . . . . . . Crush . | . . . . . . Escape Stasis . | . . . . . . Rewire . | . . . . . . Trap . | . . . . . . Miscellaneous . | . . . . . . Route ------- -11/Scrapyard -10/Materials -9/Materials -9/Mines (discovered 2 exits: [*Mat] / *Exi) -9/Exiles (discovered 2 exits: [*Min x2]) -8/Mines History --------- Turn | Location | Event 10 | -11/Scrapyard | Discovered new exit (range 16) 283 | -11/Scrapyard | Entered Materials 326 | -10/Materials | Build established: Mutant 471 | -10/Materials | Discovered new exit (range 5) 621 | -10/Materials | Entered another Materials area 621 | -9/Materials | Evolved 2 slots: Utility x2 834 | -9/Materials | Discovered new exit (range 14) 989 | -9/Materials | Entered Mines 1041 | -9/Mines | Lost 5 parts (2p2n1u) 1049 | -9/Mines | Discovered new exit (range 5) 1182 | -9/Mines | Learned Materials garrison access intel 1187 | -9/Mines | Deemed a non-threat by the Exiles lab entrance 1188 | -9/Mines | Discovered new exit (range 5) 1192 | -9/Mines | Entered Exiles 1207 | -9/Exiles | Discovered new exit (range 15) 1219 | -9/Exiles | Met 8R-AWN 1233 | -9/Exiles | Met EX-HEX 1261 | -9/Exiles | Met EX-BIN 1278 | -9/Exiles | Aligned with FarCom system 1279 | -9/Exiles | Given EX-Vault access code 1305 | -9/Exiles | Opened EX-Vault 1315 | -9/Exiles | Found Trap Reconfigurator 1320 | -9/Exiles | Found AWS/Autocannon 1341 | -9/Exiles | Warned to stay clear of 0b10 Research branches 1342 | -9/Exiles | Build established: Scavenger-Mutant 1373 | -9/Exiles | Met EX-DEC 1455 | -9/Exiles | Discovered new exit (range 10) 1463 | -9/Exiles | Left Exiles lab with AWS/Autocannon 1463 | -9/Exiles | Entered Mines 1500 | -8/Mines | Core integrity fell below 50% 1540 | -8/Mines | Core integrity fell below 20% 1554 | -8/Mines | Destroyed by G-47 Trooper with Particle Gun Last Messages --------------- 01499_ G-47 Trooper destroyed. 01505_ Seismic Detector destroyed. 01506_ G-47 Trooper suffers critical hit (Destroy). 01506_ Destroyed Aluminum Leg. 01508_ G-47 Trooper suffers critical hit (Destroy). 01508_ G-47 Trooper destroyed. 01508_ R-06 Scavenger collects Particle Gun. 01511_ R-06 Scavenger collects Lgt. Nuclear Core. 01513_ Com. Wheel destroyed. 01515_ Lgt. Ion Engine destroyed. 01519_ Heat Sink destroyed. 01527_ Com. Wheel destroyed. 01537_ Imp. Heat Sink destroyed. 01545_ Critical hit (Burn: +37). 01549_ C-30 ARC bursts open, deploying its payload. 01549_ G-47 Trooper unfolds itself. 01549_ R-06 Scavenger collects Imp. Heat Sink. 01551_ R-06 Scavenger suffers critical hit (Burn). 01551_ G-50 Soldier destroyed. 01552_ R-06 Scavenger collects Aluminum Leg. Map ----- +----------------------------------------------------+ | ?????????????????????????????????????????? | | ?????????????????????????????????????????? | | ?????????????????????????????????????????? | | ?????????????????????????????????????????? | | ???# ???????????????????????????????????? | | ???# ???????????????????????????????????? | | ???# ???????????????????????????????????? | | ???# #####??????????????????????????????? | | ???# ##?????????????????????????????? | | ???# ##????????????????????????????? | | ??## ##???????????????????????????? | | ??# ????????????????????????????? | | ??# ?????????????????????????????? | | ??# #?????????????????????????????? | | ??? ##????????????????????????????? | | ???# #????????????????????????????? | | ????# #????????????????????????????? | | ?????# #????????????????????????????? | | ?????# #?????????????????????????????? | | ?????## ###?????????????????????????????? | | ??????# ###?????????????????????????????? | | ??????# ##????????????????????????????? | | ??????# ##???????????????????????????? | | ??????## ##??????????????????????????? | | ???????# ######?????????????????????? | | ???????## ##@ ##????????????????????? | | ????????## r #????????????????????? | | ?????????# ! r #????????????????????? | | ?????????## ! %* ##????????????????????? | | ??????????# !##?????????????????????? | | ??????????## gg ###??????????????????????? | | ???????????## ###????????????????????????? | | ????????????# #??????????????????????????? | | ????????????% #??????????????????????????? | | ??????????? ###??????????????????????????? | | ?????????? ?????????????????????????????? | | ??????????#g?????????????????????????????? | | ?????????????????????????????????????????? | | ?????????????????????????????????????????? | | ?????????????????????????????????????????? | | ?????????????????????????????????????????? | | ?????????????????????????????????????????? | | ?????????????????????????????????????????? | | ?????????????????????????????????????????? | | ?????????????????????????????????????????? | | ?????????????????????????????????????????? | | ?????????????????????????????????????????? | | ?????????????????????????????????????????? | | ?????????????????????????????????????????? | | ?????????????????????????????????????????? | +----------------------------------------------------+ Best States ------------- Heat Dissipation 52 Energy Generation 12 Energy Capacity 265 Matter Stores 300 Matter Capacity 300 Sight Range 16 Terrain Scan Density 10 Evasion (%) 40 Recoil Reduction 2 Item Schematics ----------------- None Robot Schematics ------------------ None Fabricated ------------ Nothing Alien Tech Used ----------------- None Achievements -------------- None Challenges ------------ None Game ------ Seed OmegaCoreMantle Manual? 0 Play Time 00:11:02 Cumulative 121.0 hours Start 2022.07.19 @ 19:56:16 End 2022.07.19 @ 20:06:58 Sessions 1 Manual Loads 0 Difficulty Rogue Special Mode None Game No. 163 Rogue 163 Adventurer 0 Explorer 0 Win Type - Total 5 Types 5/0/0/0/0/0/0/0/0 Lore% 59 Gallery% 63 Achievement% 53 Wizard Run 0 Options --------- ASCII 1 Keyboard 1 Movement Numpad Keybinds 0 Fullscreen 1 Font 18/X11 Map View 76x50 Tactical HUD 1 Map Filters NONE Filters NONE Steam 1 RUN: 965a5c2d-45c9-4272-9b86-2819dcc487c7